[Event "January 2 Early 2024"]
[Site "https://www.chess.com"]
[Date "2024.01.02"]
[Round "7"]
[White "Floresvillar Gonzalez, Luis Migu"]
[Black "Gaboyan, Susanna"]
[Result "1-0"]
[Board "200"]
[TimeControl "180+1"]
[WhiteFideId "5100542"]
[BlackFideId "13303627"]
[WhiteElo "2161"]
[BlackElo "2360"]
[WhiteTeam "MEX"]
[BlackTeam "ARM"]
[WhiteClock "0:00:05"]
[BlackClock "0:00:00"]

1. d4 {[%clk 0:03:00]}  Nf6 {[%clk 0:02:58]} 2. c3 {[%clk 0:03:00]}  g6 {[%clk 0:02:57]} 3. Bg5 {[%clk 0:03:00]}  Bg7 {[%clk 0:02:55]} 4. Nd2 {[%clk 0:02:59]}  d5 {[%clk 0:02:55]} 5. f4 {[%clk 0:02:52]}  c5 {[%clk 0:02:39]} 6. e3 {[%clk 0:02:49]}  Nc6 {[%clk 0:02:35]} 7. Ngf3 {[%clk 0:02:49]}  Bf5 {[%clk 0:02:30]} 8. Be2 {[%clk 0:02:48]}  Ne4 {[%clk 0:02:23]} 9. Nxe4 {[%clk 0:02:44]}  Bxe4 {[%clk 0:02:14]} 10. O-O {[%clk 0:02:40]}  O-O {[%clk 0:02:10]} 11. Bh4 {[%clk 0:02:32]}  cxd4 {[%clk 0:01:58]} 12. exd4 {[%clk 0:02:30]}  Qb6 {[%clk 0:01:59]} 13. Qb3 {[%clk 0:02:27]}  Qc7 {[%clk 0:01:26]} 14. Ne5 {[%clk 0:02:26]}  f6 {[%clk 0:01:06]} 15. Nxc6 {[%clk 0:02:19]}  bxc6 {[%clk 0:01:07]} 16. Bg3 {[%clk 0:02:13]}  e5 {[%clk 0:00:56]} 17. fxe5 {[%clk 0:02:10]}  fxe5 {[%clk 0:00:57]} 18. Rxf8+ {[%clk 0:02:03]}  Rxf8 {[%clk 0:00:55]} 19. Rf1 {[%clk 0:02:03]}  Rxf1+ {[%clk 0:00:48]} 20. Bxf1 {[%clk 0:02:03]}  Qe7 {[%clk 0:00:49]} 21. Qb8+ {[%clk 0:01:55]}  Qf8 {[%clk 0:00:47]} 22. Qxf8+ {[%clk 0:01:52]}  Kxf8 {[%clk 0:00:48]} 23. dxe5 {[%clk 0:01:34]}  Ke7 {[%clk 0:00:48]} 24. Kf2 {[%clk 0:01:34]}  Ke6 {[%clk 0:00:48]} 25. Ke3 {[%clk 0:01:32]}  Bxe5 {[%clk 0:00:46]} 26. Bxe5 {[%clk 0:01:31]}  Kxe5 {[%clk 0:00:47]} 27. b4 {[%clk 0:01:27]}  h5 {[%clk 0:00:35]} 28. g3 {[%clk 0:01:26]}  g5 {[%clk 0:00:35]} 29. h4 {[%clk 0:01:24]}  gxh4 {[%clk 0:00:35]} 30. gxh4 {[%clk 0:01:24]}  Bf5 {[%clk 0:00:35]} 31. Be2 {[%clk 0:01:17]}  Bg6 {[%clk 0:00:24]} 32. a4 {[%clk 0:01:11]}  Be8 {[%clk 0:00:22]} 33. a5 {[%clk 0:00:59]}  Bg6 {[%clk 0:00:21]} 34. Ba6 {[%clk 0:00:56]}  Be8 {[%clk 0:00:19]} 35. Bc8 {[%clk 0:00:53]}  Bg6 {[%clk 0:00:14]} 36. Bd7 {[%clk 0:00:50]}  Kd6 {[%clk 0:00:14]} 37. Bh3 {[%clk 0:00:48]}  c5 {[%clk 0:00:14]} 38. b5 {[%clk 0:00:42]}  Be8 {[%clk 0:00:14]} 39. Bf1 {[%clk 0:00:34]}  c4 {[%clk 0:00:09]} 40. b6 {[%clk 0:00:34]}  axb6 {[%clk 0:00:09]} 41. axb6 {[%clk 0:00:33]}  Kc6 {[%clk 0:00:09]} 42. Kd4 {[%clk 0:00:32]}  Bf7 {[%clk 0:00:09]} 43. Bg2 {[%clk 0:00:32]}  Bg6 {[%clk 0:00:05]} 44. Bxd5+ {[%clk 0:00:31]}  Kxb6 {[%clk 0:00:05]} 45. Bxc4 {[%clk 0:00:30]}  Kc6 {[%clk 0:00:06]} 46. Be2 {[%clk 0:00:29]}  Bf7 {[%clk 0:00:05]} 47. Ke5 {[%clk 0:00:26]}  Kd7 {[%clk 0:00:04]} 48. Kf6 {[%clk 0:00:26]}  Ke8 {[%clk 0:00:03]} 49. Bd3 {[%clk 0:00:21]}  Kf8 {[%clk 0:00:03]} 50. Bg6 {[%clk 0:00:20]}  Bb3 {[%clk 0:00:04]} 51. Bxh5 {[%clk 0:00:19]}  Kg8 {[%clk 0:00:04]} 52. Bg6 {[%clk 0:00:18]}  Kh8 {[%clk 0:00:04]} 53. h5 {[%clk 0:00:17]}  Bc4 {[%clk 0:00:04]} 54. h6 {[%clk 0:00:15]}  Bb3 {[%clk 0:00:04]} 55. Bf5 {[%clk 0:00:13]}  Bc4 {[%clk 0:00:04]} 56. Ke5 {[%clk 0:00:10]}  Bb3 {[%clk 0:00:04]} 57. Be6 {[%clk 0:00:07]}  Ba4 {[%clk 0:00:05]} 58. c4 {[%clk 0:00:06]}  Be8 {[%clk 0:00:04]} 59. c5 {[%clk 0:00:05]}  Bc6 {[%clk 0:00:04]} 60. Bf5 {[%clk 0:00:05]}  Kg8 {[%clk 0:00:00]} 61. Kd6 {[%clk 0:00:05]} 1-0

[Event "January 2 Early 2024"]
[Site "https://www.chess.com"]
[Date "2024.01.02"]
[Round "7"]
[White "Agrest, Inna"]
[Black "Petersson, Kjell"]
[Result "1-0"]
[Board "201"]
[TimeControl "180+1"]
[WhiteFideId "1708830"]
[BlackFideId "1705148"]
[WhiteElo "2349"]
[BlackElo "2143"]
[WhiteTeam "SWE"]
[BlackTeam "SWE"]
[WhiteClock "0:01:12"]
[BlackClock "0:00:19"]

1. e4 {[%clk 0:03:00]}  c5 {[%clk 0:03:00]} 2. Nf3 {[%clk 0:03:01]}  d6 {[%clk 0:03:00]} 3. d4 {[%clk 0:03:01]}  cxd4 {[%clk 0:03:01]} 4. Nxd4 {[%clk 0:03:02]}  Nf6 {[%clk 0:03:01]} 5. Nc3 {[%clk 0:03:03]}  g6 {[%clk 0:03:02]} 6. Be3 {[%clk 0:03:01]}  Bg7 {[%clk 0:03:02]} 7. f3 {[%clk 0:03:01]}  O-O {[%clk 0:03:03]} 8. Qd2 {[%clk 0:03:01]}  Nc6 {[%clk 0:03:03]} 9. Bc4 {[%clk 0:03:02]}  Nd7 {[%clk 0:03:03]} 10. Bb3 {[%clk 0:02:59]}  Nb6 {[%clk 0:03:03]} 11. h4 {[%clk 0:02:57]}  Na5 {[%clk 0:03:03]} 12. Qe2 {[%clk 0:02:53]}  a6 {[%clk 0:03:00]} 13. f4 {[%clk 0:02:38]}  e5 {[%clk 0:02:44]} 14. fxe5 {[%clk 0:02:38]}  dxe5 {[%clk 0:02:41]} 15. Nf3 {[%clk 0:02:36]}  Nxb3 {[%clk 0:02:30]} 16. axb3 {[%clk 0:02:35]}  h5 {[%clk 0:02:29]} 17. Qf2 {[%clk 0:02:19]}  Nd7 {[%clk 0:02:26]} 18. O-O-O {[%clk 0:02:19]}  b5 {[%clk 0:02:03]} 19. Nd5 {[%clk 0:02:17]}  a5 {[%clk 0:01:55]} 20. Bb6 {[%clk 0:01:52]}  Nxb6 {[%clk 0:01:07]} 21. Nxb6 {[%clk 0:01:50]}  Qe7 {[%clk 0:01:01]} 22. Nxa8 {[%clk 0:01:49]}  a4 {[%clk 0:00:53]} 23. Nb6 {[%clk 0:01:39]}  Be6 {[%clk 0:00:46]} 24. Nd5 {[%clk 0:01:33]}  Qb7 {[%clk 0:00:44]} 25. b4 {[%clk 0:01:29]}  a3 {[%clk 0:00:35]} 26. bxa3 {[%clk 0:01:29]}  Ra8 {[%clk 0:00:34]} 27. Kb2 {[%clk 0:01:23]}  Bxd5 {[%clk 0:00:33]} 28. Rxd5 {[%clk 0:01:22]}  f5 {[%clk 0:00:32]} 29. Rhd1 {[%clk 0:01:15]}  fxe4 {[%clk 0:00:32]} 30. Ng5 {[%clk 0:01:14]}  e3 {[%clk 0:00:19]} 31. Rd8+ {[%clk 0:01:12]} 1-0

[Event "January 2 Early 2024"]
[Site "https://www.chess.com"]
[Date "2024.01.02"]
[Round "7"]
[White "Zepeda Berlanga, Jan Enrique"]
[Black "Mesa Cruz, Juan Carlos"]
[Result "0-1"]
[Board "203"]
[TimeControl "180+1"]
[WhiteFideId "5132355"]
[BlackFideId "6423400"]
[WhiteElo "1954"]
[BlackElo "2294"]
[WhiteTeam "MEX"]
[BlackTeam "DOM"]
[WhiteClock "0:00:07"]
[BlackClock "0:01:36"]

1. e4 {[%clk 0:02:50]}  c5 {[%clk 0:02:57]} 2. Nf3 {[%clk 0:02:49]}  d6 {[%clk 0:02:50]} 3. Bc4 {[%clk 0:02:44]}  Nf6 {[%clk 0:02:48]} 4. Nc3 {[%clk 0:02:41]}  e6 {[%clk 0:02:45]} 5. O-O {[%clk 0:02:36]}  a6 {[%clk 0:02:45]} 6. a4 {[%clk 0:02:36]}  Be7 {[%clk 0:02:35]} 7. Re1 {[%clk 0:02:35]}  O-O {[%clk 0:02:34]} 8. d4 {[%clk 0:02:34]}  cxd4 {[%clk 0:02:32]} 9. Nxd4 {[%clk 0:02:35]}  Qc7 {[%clk 0:02:32]} 10. Bd3 {[%clk 0:02:31]}  Nbd7 {[%clk 0:02:31]} 11. f4 {[%clk 0:02:22]}  Nc5 {[%clk 0:02:27]} 12. Be3 {[%clk 0:02:13]}  g6 {[%clk 0:02:17]} 13. Bf2 {[%clk 0:02:02]}  e5 {[%clk 0:02:15]} 14. fxe5 {[%clk 0:01:52]}  dxe5 {[%clk 0:02:16]} 15. Nf3 {[%clk 0:01:51]}  Ng4 {[%clk 0:02:14]} 16. Nd5 {[%clk 0:01:49]}  Qd8 {[%clk 0:02:07]} 17. b4 {[%clk 0:01:19]}  Nxf2 {[%clk 0:01:58]} 18. Kxf2 {[%clk 0:01:18]}  Nxd3+ {[%clk 0:01:57]} 19. Qxd3 {[%clk 0:01:09]}  Bxb4 {[%clk 0:01:54]} 20. Nxb4 {[%clk 0:01:07]}  Qb6+ {[%clk 0:01:54]} 21. Kf1 {[%clk 0:01:01]}  Qxb4 {[%clk 0:01:53]} 22. Nxe5 {[%clk 0:01:00]}  Be6 {[%clk 0:01:51]} 23. Reb1 {[%clk 0:00:44]}  Qc5 {[%clk 0:01:50]} 24. Qg3 {[%clk 0:00:23]}  Rfe8 {[%clk 0:01:37]} 25. Rc1 {[%clk 0:00:07]}  Qxe5 {[%clk 0:01:36]} 0-1

[Event "January 2 Early 2024"]
[Site "https://www.chess.com"]
[Date "2024.01.02"]
[Round "8"]
[White "Mamedyarov, Shakhriyar"]
[Black "Sadhwani, Raunak"]
[Result "1-0"]
[Board "1"]
[TimeControl "180+1"]
[WhiteFideId "13401319"]
[BlackFideId "35093487"]
[WhiteElo "3076"]
[BlackElo "3086"]
[WhiteTeam "AZE"]
[BlackTeam "IND"]
[WhiteClock "0:00:23"]
[BlackClock "0:00:07"]

1. d4 {[%clk 0:03:00]}  Nf6 {[%clk 0:02:59]} 2. Bg5 {[%clk 0:03:00]}  d5 {[%clk 0:02:59]} 3. Nd2 {[%clk 0:03:00]}  c5 {[%clk 0:02:52]} 4. dxc5 {[%clk 0:03:00]}  e6 {[%clk 0:02:26]} 5. e4 {[%clk 0:02:58]}  Bxc5 {[%clk 0:02:23]} 6. e5 {[%clk 0:02:59]}  h6 {[%clk 0:02:13]} 7. Bh4 {[%clk 0:02:57]}  g5 {[%clk 0:02:13]} 8. Bg3 {[%clk 0:02:57]}  Nfd7 {[%clk 0:02:13]} 9. h4 {[%clk 0:02:38]}  gxh4 {[%clk 0:02:11]} 10. Rxh4 {[%clk 0:02:34]}  Nc6 {[%clk 0:02:09]} 11. Ngf3 {[%clk 0:02:34]}  Ncxe5 {[%clk 0:01:50]} 12. Bb5 {[%clk 0:02:20]}  Ng6 {[%clk 0:01:47]} 13. Rh1 {[%clk 0:02:15]}  Qf6 {[%clk 0:01:32]} 14. c3 {[%clk 0:02:04]}  a6 {[%clk 0:01:20]} 15. Ba4 {[%clk 0:01:46]}  h5 {[%clk 0:01:08]} 16. Qe2 {[%clk 0:01:38]}  h4 {[%clk 0:01:01]} 17. Bh2 {[%clk 0:01:37]}  Nf4 {[%clk 0:00:53]} 18. Bxf4 {[%clk 0:01:20]}  Qxf4 {[%clk 0:00:54]} 19. c4 {[%clk 0:01:21]}  dxc4 {[%clk 0:00:42]} 20. g3 {[%clk 0:01:21]}  Qf6 {[%clk 0:00:41]} 21. Ne4 {[%clk 0:01:21]}  Bb4+ {[%clk 0:00:39]} 22. Kf1 {[%clk 0:01:20]}  Qg7 {[%clk 0:00:31]} 23. Qxc4 {[%clk 0:01:10]}  Be7 {[%clk 0:00:21]} 24. Rd1 {[%clk 0:00:46]}  hxg3 {[%clk 0:00:14]} 25. Rxh8+ {[%clk 0:00:35]}  Qxh8 {[%clk 0:00:15]} 26. Nxg3 {[%clk 0:00:28]}  b5 {[%clk 0:00:15]} 27. Qc6 {[%clk 0:00:29]}  Rb8 {[%clk 0:00:16]} 28. Bb3 {[%clk 0:00:26]}  Qh3+ {[%clk 0:00:13]} 29. Kg1 {[%clk 0:00:26]}  Qg4 {[%clk 0:00:07]} 30. Ne5 {[%clk 0:00:23]} 1-0

[Event "January 2 Early 2024"]
[Site "https://www.chess.com"]
[Date "2024.01.02"]
[Round "8"]
[White "Firouzja, Alireza"]
[Black "Klimkowski, Jan"]
[Result "1-0"]
[Board "4"]
[TimeControl "180+1"]
[WhiteFideId "12573981"]
[BlackFideId "21856222"]
[WhiteElo "3158"]
[BlackElo "2934"]
[WhiteTeam "FRA"]
[BlackTeam "POL"]
[WhiteClock "0:00:15"]
[BlackClock "0:00:00"]

1. d4 {[%clk 0:02:53]}  Nf6 {[%clk 0:02:59]} 2. Bg5 {[%clk 0:02:52]}  e6 {[%clk 0:02:59]} 3. e4 {[%clk 0:02:49]}  h6 {[%clk 0:02:59]} 4. Bxf6 {[%clk 0:02:49]}  Qxf6 {[%clk 0:03:00]} 5. Qd2 {[%clk 0:02:49]}  d5 {[%clk 0:03:00]} 6. e5 {[%clk 0:02:49]}  Qd8 {[%clk 0:03:00]} 7. f4 {[%clk 0:02:42]}  c5 {[%clk 0:03:00]} 8. c3 {[%clk 0:02:42]}  Nc6 {[%clk 0:02:57]} 9. Nf3 {[%clk 0:02:42]}  Bd7 {[%clk 0:02:49]} 10. Be2 {[%clk 0:02:37]}  g5 {[%clk 0:02:23]} 11. O-O {[%clk 0:02:11]}  g4 {[%clk 0:02:19]} 12. Ne1 {[%clk 0:02:09]}  h5 {[%clk 0:02:20]} 13. dxc5 {[%clk 0:02:04]}  Bxc5+ {[%clk 0:02:18]} 14. Kh1 {[%clk 0:02:04]}  Qb6 {[%clk 0:02:17]} 15. Nd3 {[%clk 0:02:02]}  Be3 {[%clk 0:02:12]} 16. Qe1 {[%clk 0:01:59]}  Ne7 {[%clk 0:02:10]} 17. Na3 {[%clk 0:01:51]}  Nf5 {[%clk 0:02:03]} 18. Nc2 {[%clk 0:01:51]}  Rc8 {[%clk 0:01:52]} 19. a4 {[%clk 0:01:41]}  a5 {[%clk 0:01:23]} 20. b4 {[%clk 0:01:29]}  axb4 {[%clk 0:01:20]} 21. Ndxb4 {[%clk 0:01:27]}  Qc5 {[%clk 0:01:11]} 22. Bd3 {[%clk 0:01:23]}  d4 {[%clk 0:00:49]} 23. Bxf5 {[%clk 0:01:12]}  exf5 {[%clk 0:00:50]} 24. cxd4 {[%clk 0:01:12]}  Bxd4 {[%clk 0:00:50]} 25. Nxd4 {[%clk 0:01:12]}  Qxd4 {[%clk 0:00:51]} 26. Rd1 {[%clk 0:01:13]}  Qc5 {[%clk 0:00:17]} 27. Nd5 {[%clk 0:01:07]}  Be6 {[%clk 0:00:15]} 28. Nf6+ {[%clk 0:01:03]}  Kf8 {[%clk 0:00:16]} 29. Qh4 {[%clk 0:00:55]}  Qb4 {[%clk 0:00:15]} 30. Qg5 {[%clk 0:00:45]}  Qxa4 {[%clk 0:00:13]} 31. Nxh5 {[%clk 0:00:45]}  Rg8 {[%clk 0:00:08]} 32. Qh6+ {[%clk 0:00:42]}  Ke7 {[%clk 0:00:08]} 33. Qf6+ {[%clk 0:00:37]}  Kf8 {[%clk 0:00:05]} 34. Rd8+ {[%clk 0:00:33]}  Rxd8 {[%clk 0:00:04]} 35. Qxd8+ {[%clk 0:00:34]}  Qe8 {[%clk 0:00:04]} 36. Qxe8+ {[%clk 0:00:35]}  Kxe8 {[%clk 0:00:05]} 37. Nf6+ {[%clk 0:00:36]}  Kf8 {[%clk 0:00:06]} 38. Nxg8 {[%clk 0:00:37]}  Kxg8 {[%clk 0:00:07]} 39. Rb1 {[%clk 0:00:35]}  Bd5 {[%clk 0:00:07]} 40. Kg1 {[%clk 0:00:35]}  Kg7 {[%clk 0:00:07]} 41. Kf2 {[%clk 0:00:35]}  f6 {[%clk 0:00:07]} 42. exf6+ {[%clk 0:00:30]}  Kxf6 {[%clk 0:00:08]} 43. h4 {[%clk 0:00:30]}  gxh3 {[%clk 0:00:06]} 44. gxh3 {[%clk 0:00:31]}  Kg6 {[%clk 0:00:07]} 45. Rg1+ {[%clk 0:00:30]}  Kh6 {[%clk 0:00:05]} 46. Ke3 {[%clk 0:00:23]}  b5 {[%clk 0:00:02]} 47. Kd4 {[%clk 0:00:22]}  Bb3 {[%clk 0:00:01]} 48. Rg3 {[%clk 0:00:16]}  Bc2 {[%clk 0:00:00]} 49. Rc3 {[%clk 0:00:15]} 1-0

[Event "January 2 Early 2024"]
[Site "https://www.chess.com"]
[Date "2024.01.02"]
[Round "8"]
[White "Carlsen, Magnus"]
[Black "Zhigalko, Sergei"]
[Result "1-0"]
[Board "8"]
[TimeControl "180+1"]
[WhiteFideId "1503014"]
[BlackFideId "13502956"]
[WhiteElo "3363"]
[BlackElo "2908"]
[WhiteTeam "NOR"]
[BlackTeam "BLR"]
[WhiteClock "0:01:42"]
[BlackClock "0:00:00"]

1. h4 {[%clk 0:03:00]}  e5 {[%clk 0:02:53]} 2. d4 {[%clk 0:02:59]}  exd4 {[%clk 0:02:50]} 3. Qxd4 {[%clk 0:02:58]}  Nc6 {[%clk 0:02:49]} 4. Qa4 {[%clk 0:02:56]}  Nf6 {[%clk 0:02:33]} 5. Nf3 {[%clk 0:02:55]}  d5 {[%clk 0:02:30]} 6. Bf4 {[%clk 0:02:55]}  Bd6 {[%clk 0:02:26]} 7. e3 {[%clk 0:02:53]}  O-O {[%clk 0:02:25]} 8. Nc3 {[%clk 0:02:52]}  Bb4 {[%clk 0:01:57]} 9. Bb5 {[%clk 0:02:49]}  Bd7 {[%clk 0:01:36]} 10. O-O {[%clk 0:02:48]}  Bxc3 {[%clk 0:01:32]} 11. bxc3 {[%clk 0:02:49]}  a6 {[%clk 0:01:30]} 12. Be2 {[%clk 0:02:49]}  Ne4 {[%clk 0:01:02]} 13. Qb3 {[%clk 0:02:46]}  Na5 {[%clk 0:00:55]} 14. Qa3 {[%clk 0:02:46]}  c5 {[%clk 0:00:44]} 15. Rfd1 {[%clk 0:02:43]}  Bb5 {[%clk 0:00:44]} 16. Bd3 {[%clk 0:02:38]}  Nc4 {[%clk 0:00:42]} 17. Qb3 {[%clk 0:02:39]}  Na5 {[%clk 0:00:34]} 18. Qb2 {[%clk 0:02:39]}  Nc4 {[%clk 0:00:35]} 19. Bxc4 {[%clk 0:02:39]}  Bxc4 {[%clk 0:00:36]} 20. Nd2 {[%clk 0:02:32]}  Nxd2 {[%clk 0:00:32]} 21. Rxd2 {[%clk 0:02:33]}  b5 {[%clk 0:00:30]} 22. h5 {[%clk 0:02:29]}  Qf6 {[%clk 0:00:28]} 23. a4 {[%clk 0:02:22]}  b4 {[%clk 0:00:27]} 24. Rdd1 {[%clk 0:02:16]}  h6 {[%clk 0:00:25]} 25. Rab1 {[%clk 0:02:15]}  bxc3 {[%clk 0:00:16]} 26. Qb6 {[%clk 0:02:16]}  Qf5 {[%clk 0:00:16]} 27. Qxc5 {[%clk 0:02:14]}  Qxc2 {[%clk 0:00:15]} 28. Be5 {[%clk 0:02:05]}  Rac8 {[%clk 0:00:11]} 29. Qd4 {[%clk 0:02:04]}  Bb3 {[%clk 0:00:08]} 30. Rdc1 {[%clk 0:02:00]}  Qd2 {[%clk 0:00:07]} 31. Qg4 {[%clk 0:01:44]}  f6 {[%clk 0:00:06]} 32. Bxf6 {[%clk 0:01:45]}  Rc7 {[%clk 0:00:05]} 33. Rxc3 {[%clk 0:01:42]}  Rxf6 {[%clk 0:00:03]} 34. Rxc7 {[%clk 0:01:41]}  Qxf2+ {[%clk 0:00:00]} 35. Kh2 {[%clk 0:01:42]} 1-0

[Event "January 2 Early 2024"]
[Site "https://www.chess.com"]
[Date "2024.01.02"]
[Round "8"]
[White "Kukhmazov, Arsen"]
[Black "Movahed, Sina"]
[Result "0-1"]
[Board "10"]
[TimeControl "180+1"]
[WhiteFideId "24108260"]
[BlackFideId "42520835"]
[WhiteElo "2880"]
[BlackElo "3005"]
[WhiteTeam "FID"]
[BlackTeam "IRI"]
[WhiteClock "0:00:00"]
[BlackClock "0:00:08"]

1. d4 {[%clk 0:03:00]}  Nf6 {[%clk 0:02:59]} 2. c4 {[%clk 0:03:01]}  g6 {[%clk 0:03:00]} 3. Nf3 {[%clk 0:03:02]}  Bg7 {[%clk 0:03:00]} 4. g3 {[%clk 0:03:02]}  O-O {[%clk 0:03:01]} 5. Bg2 {[%clk 0:03:02]}  d6 {[%clk 0:03:02]} 6. O-O {[%clk 0:03:03]}  Nbd7 {[%clk 0:03:03]} 7. Nc3 {[%clk 0:03:03]}  e5 {[%clk 0:03:04]} 8. h3 {[%clk 0:03:04]}  a6 {[%clk 0:03:00]} 9. dxe5 {[%clk 0:02:55]}  dxe5 {[%clk 0:02:57]} 10. Be3 {[%clk 0:02:53]}  Qe7 {[%clk 0:02:33]} 11. Qb3 {[%clk 0:02:53]}  c6 {[%clk 0:02:28]} 12. Rfd1 {[%clk 0:02:48]}  Re8 {[%clk 0:02:26]} 13. Rd2 {[%clk 0:02:37]}  b5 {[%clk 0:02:23]} 14. Qc2 {[%clk 0:01:30]}  h6 {[%clk 0:02:05]} 15. Rad1 {[%clk 0:01:30]}  Rb8 {[%clk 0:02:01]} 16. Ne1 {[%clk 0:01:10]}  Bb7 {[%clk 0:01:47]} 17. cxb5 {[%clk 0:01:00]}  cxb5 {[%clk 0:01:48]} 18. Bxb7 {[%clk 0:00:59]}  Rxb7 {[%clk 0:01:49]} 19. Nd5 {[%clk 0:00:56]}  Nxd5 {[%clk 0:01:44]} 20. Rxd5 {[%clk 0:00:57]}  Nf6 {[%clk 0:01:35]} 21. Rd6 {[%clk 0:00:57]}  e4 {[%clk 0:01:16]} 22. Rxa6 {[%clk 0:00:52]}  Rd7 {[%clk 0:01:17]} 23. Rxd7 {[%clk 0:00:42]}  Qxd7 {[%clk 0:01:18]} 24. Kh2 {[%clk 0:00:38]}  Nd5 {[%clk 0:01:14]} 25. Qb3 {[%clk 0:00:34]}  Rc8 {[%clk 0:01:01]} 26. Ng2 {[%clk 0:00:23]}  g5 {[%clk 0:00:57]} 27. Ra7 {[%clk 0:00:06]}  Qf5 {[%clk 0:00:56]} 28. Rb7 {[%clk 0:00:07]}  Nxe3 {[%clk 0:00:50]} 29. Qxe3 {[%clk 0:00:08]}  Bxb2 {[%clk 0:00:48]} 30. Qb6 {[%clk 0:00:06]}  Bg7 {[%clk 0:00:27]} 31. Rb8 {[%clk 0:00:03]}  Rxb8 {[%clk 0:00:26]} 32. Qxb8+ {[%clk 0:00:04]}  Kh7 {[%clk 0:00:27]} 33. Qb6 {[%clk 0:00:05]}  h5 {[%clk 0:00:24]} 34. Qe3 {[%clk 0:00:05]}  Qd5 {[%clk 0:00:23]} 35. a3 {[%clk 0:00:04]}  Bd4 {[%clk 0:00:21]} 36. Qd2 {[%clk 0:00:04]}  Qe5 {[%clk 0:00:19]} 37. e3 {[%clk 0:00:05]}  Bc3 {[%clk 0:00:20]} 38. Qd7 {[%clk 0:00:05]}  Kg7 {[%clk 0:00:20]} 39. h4 {[%clk 0:00:04]}  Qf6 {[%clk 0:00:16]} 40. hxg5 {[%clk 0:00:04]}  Qxf2 {[%clk 0:00:16]} 41. Qxb5 {[%clk 0:00:03]}  Qf3 {[%clk 0:00:10]} 42. Nh4 {[%clk 0:00:02]}  Qf2+ {[%clk 0:00:08]} 43. Ng2 {[%clk 0:00:03]}  Qf3 {[%clk 0:00:08]} 44. Kh3 {[%clk 0:00:03]}  Qd1 {[%clk 0:00:07]} 45. Kh2 {[%clk 0:00:03]}  Qd2 {[%clk 0:00:05]} 46. Qf5 {[%clk 0:00:03]}  Qd3 {[%clk 0:00:05]} 47. Nf4 {[%clk 0:00:03]}  Qxe3 {[%clk 0:00:04]} 48. Nxh5+ {[%clk 0:00:03]}  Kf8 {[%clk 0:00:05]} 49. Qc8+ {[%clk 0:00:03]}  Ke7 {[%clk 0:00:06]} 50. Qc7+ {[%clk 0:00:04]}  Ke8 {[%clk 0:00:05]} 51. Ng7+ {[%clk 0:00:02]}  Bxg7 {[%clk 0:00:05]} 52. Qc8+ {[%clk 0:00:02]}  Ke7 {[%clk 0:00:06]} 53. Qc7+ {[%clk 0:00:03]}  Ke6 {[%clk 0:00:07]} 54. Qc6+ {[%clk 0:00:03]}  Kf5 {[%clk 0:00:07]} 55. Qd5+ {[%clk 0:00:04]}  Kg6 {[%clk 0:00:07]} 56. Qc6+ {[%clk 0:00:00]}  Kh7 {[%clk 0:00:08]} 0-1

[Event "January 2 Early 2024"]
[Site "https://www.chess.com"]
[Date "2024.01.02"]
[Round "8"]
[White "Gokerkan, Cem Kaan"]
[Black "Salem, A.R. Saleh"]
[Result "1-0"]
[Board "11"]
[TimeControl "180+1"]
[WhiteFideId "6336760"]
[BlackFideId "9301348"]
[WhiteElo "2843"]
[BlackElo "2995"]
[WhiteTeam "TUR"]
[BlackTeam "UAE"]
[WhiteClock "0:00:06"]
[BlackClock "0:00:00"]

1. e4 {[%clk 0:02:56]}  e5 {[%clk 0:02:59]} 2. Nf3 {[%clk 0:02:55]}  Nc6 {[%clk 0:02:59]} 3. Bc4 {[%clk 0:02:55]}  Nf6 {[%clk 0:02:59]} 4. Ng5 {[%clk 0:02:55]}  d5 {[%clk 0:02:59]} 5. exd5 {[%clk 0:02:56]}  Na5 {[%clk 0:03:00]} 6. Bb5+ {[%clk 0:02:57]}  c6 {[%clk 0:03:01]} 7. dxc6 {[%clk 0:02:58]}  bxc6 {[%clk 0:03:02]} 8. Bd3 {[%clk 0:02:58]}  Nd5 {[%clk 0:03:02]} 9. Nf3 {[%clk 0:02:59]}  Bd6 {[%clk 0:02:59]} 10. O-O {[%clk 0:02:59]}  Nf4 {[%clk 0:03:00]} 11. Re1 {[%clk 0:02:57]}  Nxd3 {[%clk 0:02:58]} 12. cxd3 {[%clk 0:02:58]}  O-O {[%clk 0:02:58]} 13. Nc3 {[%clk 0:02:55]}  c5 {[%clk 0:02:59]} 14. b3 {[%clk 0:02:54]}  Re8 {[%clk 0:02:53]} 15. Ne4 {[%clk 0:02:50]}  Bc7 {[%clk 0:02:53]} 16. Nxc5 {[%clk 0:02:39]}  Bg4 {[%clk 0:02:53]} 17. Bb2 {[%clk 0:02:27]}  Nc6 {[%clk 0:02:51]} 18. h3 {[%clk 0:02:26]}  Bh5 {[%clk 0:02:51]} 19. Rc1 {[%clk 0:02:19]}  Rc8 {[%clk 0:02:51]} 20. Re3 {[%clk 0:02:00]}  Bb6 {[%clk 0:02:49]} 21. a3 {[%clk 0:01:58]}  Qd5 {[%clk 0:02:44]} 22. b4 {[%clk 0:01:56]}  f6 {[%clk 0:02:36]} 23. d4 {[%clk 0:01:19]}  e4 {[%clk 0:02:16]} 24. b5 {[%clk 0:00:39]}  Na5 {[%clk 0:01:26]} 25. Nxe4 {[%clk 0:00:39]}  Rxc1 {[%clk 0:01:26]} 26. Qxc1 {[%clk 0:00:27]}  Rxe4 {[%clk 0:01:26]} 27. Qc8+ {[%clk 0:00:27]}  Kf7 {[%clk 0:01:26]} 28. Ne5+ {[%clk 0:00:22]}  Rxe5 {[%clk 0:01:18]} 29. Rxe5 {[%clk 0:00:14]}  fxe5 {[%clk 0:01:18]} 30. Qf5+ {[%clk 0:00:15]}  Kg8 {[%clk 0:01:11]} 31. Qxh5 {[%clk 0:00:16]}  Qxb5 {[%clk 0:01:11]} 32. dxe5 {[%clk 0:00:12]}  g6 {[%clk 0:01:04]} 33. Qg4 {[%clk 0:00:12]}  Qc4 {[%clk 0:00:38]} 34. Qd7 {[%clk 0:00:10]}  Qf7 {[%clk 0:00:34]} 35. Qc8+ {[%clk 0:00:07]}  Qf8 {[%clk 0:00:35]} 36. Qe6+ {[%clk 0:00:08]}  Kg7 {[%clk 0:00:35]} 37. Qd7+ {[%clk 0:00:08]}  Kh6 {[%clk 0:00:35]} 38. d4 {[%clk 0:00:07]}  Nc4 {[%clk 0:00:36]} 39. Bc1+ {[%clk 0:00:07]}  g5 {[%clk 0:00:36]} 40. Qe6+ {[%clk 0:00:07]}  Kg7 {[%clk 0:00:33]} 41. Bxg5 {[%clk 0:00:06]}  Qb8 {[%clk 0:00:05]} 42. Bf6+ {[%clk 0:00:06]}  Kg6 {[%clk 0:00:03]} 43. Qxc4 {[%clk 0:00:06]}  Qb7 {[%clk 0:00:02]} 44. d5 {[%clk 0:00:06]}  Ba5 {[%clk 0:00:00]} 45. Qg4+ {[%clk 0:00:06]} 1-0